{"text_format":"1","workbook":"xlsx","n_sheets":7,"sheets":["Members","Callings","Actions","Openings","FHE assigments","Statistics","Work area"],"not_rendered":{"charts":1,"images":0,"macros":1,"external_links":0,"defined_names":15,"comments":1,"pivot_tables":1},"unopened":[],"bounds":{"document_bytes":16777216,"sheet_cells":100000,"rows_first":2000,"rows_last":500,"rows_between":2000,"halvings":0,"cell_chars":16384,"cell_head_chars":4096},"cells_cut":0,"cells_raw":0,"read":"whole","date_system":"1900"}

{"sheet":"Members","index":0,"n_rows":166,"n_cols":20,"rows_kept":166,"cut":false,"hidden":false,"merged":[]}
["Name","Last Name","Gender","Apartment","FHE","RS/EQ","Calling","Phone","Carrier","Email","Birthday","Age","School","Major","Picture","Info","Membership","Interview","Fall"]
["Aaron Taylor",null,"Male","CN1",3,1,"Sunday School  2nd Counselor","623-221-6201",null,"aaronstaylor@gmail.com","1988-02-03",{"$f":"IF(ISBLANK(K2),\"\",TRUNC((TODAY()-K2)/365.4,1))","v":24.4},"BYU","American Studies","y","y","y","y","n"]
["Abbie Willis",null,"Female","AG2",1,2,"Family History Indexer","435-724-9570",null,"abbz707@yahoo.com","1991-02-10",21.4,"BYU","Humanities","y","y","y","y","y"]
["Adam Bilodeau",{"$f":"IF(ISBLANK(A4),\"\",(MID(A4, FIND(\" \",A4,1)+1,99)))","v":"Bilodeau"},"Male","VP67",3,1,"Ward  Asst Clerk Financial","385-208-9020","T-Mobile","adam.bilodeau@byu.net","1988-11-28",23.6,"BYU","Mechanical Engineering","y","y","y","y","n"]
["Adam Hammer","Hammer","Male","VP73",5,1,"Ward   Asst Executive Secretary","989-854-6844","AT&T","adammh3@gmail.com","1988-10-11",23.7,"BYU","Exercise Sience","y","y","y","y","n"]
["Adrienne St. Clair","St. Clair","Female","VP65",6,2,"Temple Committee","480-544-6020","T-Mobile","agestclair44@gmail.com","1988-04-04",24.2,"BYU","Psychology","y","y","y","y","n"]
["Alex Smith","Smith","Female","AG6",2,2,"Ward Music - Pianst/Organist","703-232-2347","Verizon","smith-alexandra@sbcglobal.net","1988-10-05",23.7,"BYU","Communication Disorders","y","y","y","y","n"]
["Alli Farnsworth","Farnsworth","Female","AG7",5,2,"Ward Music - Choir Director","480-516-5292","AT&T","allison_m_f@yahoo.com","1991-08-30",20.8,"BYU","English Teaching","y","y","y","y","n"]
["Amber Mosley","Mosley","Female","AG6",2,2,"Communications    Committee CoChair (F)","717-253-4967","AT&T","ambsy07@yahoo.com","1988-10-03",23.7,"BYU","Mathmatics","y","y","y","y","y"]
["Amy Clark","Clark","Female","VP61",4,2,"FHE Group Ldr 4 (F)","801-870-0979","Verizon","aclark528@gmail.com","1986-05-28",26.1,"BYU","Early Childhood Ed","y","y","y","y","n"]
["An Ho",null,"Male","CN3",2,1,"None","801-735-7653",null,"?","1993-12-30",18.5,"BYU","Chemical Engineering","y","y","y","y"]
["Andrew Hardman",{"$f":"IF(ISBLANK(A12),\"\",(MID(A12, FIND(\" \",A12,1)+1,99)))","v":"Hardman"},"Male","VP77",1,1,"Ward    Executive Secretary","801-505-8449",null,"jandrewhardman@gmail.com","1986-06-22",26,"BYU","Business","y","y","y","y","n"]
["Angela Howell",{"$f":"IF(ISBLANK(A13),\"\",(MID(A13, FIND(\" \",A13,1)+1,99)))","v":"Howell"},"Female","VP60",3,2,"FHE Group Ldr 3 (F)","801-362-3572",null,"hangela@byu.edu","1987-04-04",25.2,"BYU","School Physcology","y","y","y","y","n"]
["Anna Dollins",{"$f":"IF(ISBLANK(A14),\"\",(MID(A14, FIND(\" \",A14,1)+1,99)))","v":"Dollins"},"Female","AG3",6,2,"Spiritual Welfare Committee","205-601-3789","AT&T","annae.dollins@gmail.com","1990-10-16",21.7,"BYU","Photo/Graphic design","y","y","y","y","n"]
["Annie Waggoner",{"$f":"IF(ISBLANK(A15),\"\",(MID(A15, FIND(\" \",A15,1)+1,99)))","v":"Waggoner"},"Female","VP58",1,2,"Relief Society2  Meeting Committee","702-449-7838","Verizon","annie.waggoner@gmail.com","1987-01-15",25.4,"BYU","Humanities","y","y","y","y","n"]
["Asael Checketts",null,"Male","CN1",3,1,"Physical Facilities Committee\nTemple Worker","801-227-9514",null,"asaelabc@gmail.com","1988-08-19",23.8,"BYU","Athletic Training","y","y","y","y","y?"]
["Audrey Baer",{"$f":"IF(ISBLANK(A17),\"\",(MID(A17, FIND(\" \",A17,1)+1,99)))","v":"Baer"},"Female","VP65",6,2,"Ward Music   CoChair (F)","801-616-0109","Verizon","audrey.baer@gmail.com","1989-02-04",23.4,"BYU","Elementary Education","y","y","y","y","n"]
["Audrey Spainhower","Spainhower","Female","VP57",1,2,"Communications - Ward newsletter editor\nRelief Society2  Instructor","435-668-2624","Verizon","audspain@gmail.com","1988-04-14",24.2,"Working","Church History library","y","y","y","y","n"]
["Becca Mills","Mills","Female","AG4",4,2,"Temple Committee","208-351-1446","No texts","rebeccammills@gmail.com","1991-03-01",21.3,"BYU","Athletic Training","y","y","y","y","n"]
["Becca Runyan","Runyan","Female","AG8",6,2,"Sunday School Instructor","801-995-3534",null,"becks08.runyan@gmail.com","1990-07-06",22,"UVU","Nursing","y","y","y","y","n"]
["Bethany Cherry","Cherry","Female","x",4,2,"Relief Society2   2nd Counselor","801-921-9102","Verizon","bethany.cherry@gmail.com","1991-12-09",20.5,"BYU","Undeclared","y","y","y","y","n"]
["Blake Laidlaw","Laidlaw","Male","VP76",2,1,"FHE Group Ldr 2 (M)","626-633-7561",null,"blaidlaw09@gmail.com","1990-11-09",21.6,"BYU","Undeclared","y","y","y","y","n"]
["Brad Judd",null,"Male","VP72",6,1,"Break-the-fast Committee","602-814-1449",null,"rbradleyjudd@gmail.com","1989-05-07",23.1,"BYU","Finance","y","y","y","y","n"]
["Brenda Darrington",{"$f":"IF(ISBLANK(A24),\"\",(MID(A24, FIND(\" \",A24,1)+1,99)))","v":"Darrington"},"Female","VP61",null,2,"Service Committee","208-431-1360","Verizon","bmdarrington@gmail.com","1987-01-03",25.5,"BYU","Family History","y","y","y","y","n"]
["Brett Andrus","Andrus","Male","VP74",6,1,"Spiritual Welfare  Committee CoChair (M)","801-425-7185","T-Mobile","bmandrus@byu.net","1988-03-15",24.3,"BYU","Economics","y","y","y","y"]
["Briana Hunt","Hunt","Female","AG5",2,2,"Relief Society2  VT Supervisor","626-224-3474","Verizon","beehunt11@aol.com","1990-11-11",21.6,"BYU","Business Management","y","y","y","y","n"]
["Brice Condie","Condie","Male","VP78",2,1,"Physical Facilities Committee\nElders1 Activities Committee","302-893-1191",null,"thecondienator@gmail.com","1990-05-15",22.1,"BYU","Information Technology","y","y","y","y","n"]
["Candace Carlile","Carlile","Female","VP65",6,2,"Relief Society2  VT Coordinator","801-388-5850","AT&T","candacecarlile@gmail.com","1987-10-06",24.7,"BYU","Family Life (Graduated)","y","y","y","y","n"]
["Cassey Tenney","Tenney","Female","VP58",1,2,"Family History Committee","801-336-0342","Cricket","casseytenney@gmail.com","1990-02-16",22.3,"BYU","Psychology","y","y","y","y","n"]
["Chris Doxey","Doxey","Male","VP71",5,1,"Sunday School  1st Counselor\n[Temple Worker]","801-520-4694","Verizon","crdoxey@gmail.com","1985-10-11",26.7,"BYU","Neuroscience","y","y","y","y","y"]
["Chris Wasden","Wasden","Male","VP70",4,1,"Communications    Committee CoChair (M)","707-364-6046","AT&T","christopher.wasden@gmail.com","1989-09-29",22.7,"BYU","Mechanical Engineering","y","y","y","y","y"]
["Clara Stratford","Stratford","Female","VP60",3,2,"Spiritual Welfare Committee","801-400-8636","T-Mobile","clara.stratford@gmail.com","1986-09-27",25.7,"BYU","Chinese","y","y","y","y"]
["Cory Roberts",null,"Male","VP71",5,1,"FHE Group Ldr 5 (M)","801-989-4537",null,"robertscory2@gmail.com","1990-08-29",21.8,"BYU","Economics","y","y","y","y"]
["Court Butterfield",{"$f":"IF(ISBLANK(A34),\"\",(MID(A34, FIND(\" \",A34,1)+1,99)))","v":"Butterfield"},"Male","VP75",1,1,"Ward Music   CoChair (M)","801-837-2404","T-Mobile","sportscourt_5@live.com","1988-12-24",{"$f":"IF(ISBLANK(K34),\"\",TRUNC((TODAY()-K34)/365.4,1))","v":23.5},"BYU","Accounting","y","y","y","y","y"]
["Courtney Pannell",{"$f":"IF(ISBLANK(A35),\"\",(MID(A35, FIND(\" \",A35,1)+1,99)))","v":"Pannell"},"Female","x",5,2,"Relief Society2  Meeting Committee","480-603-7330",null,"courtneypannell@live.com","1990-07-17",21.9,"UVU","Dental Hygiene","y","y","y","y"]
["Craig Jones",null,"Male","VP73",5,1,"Elders1 Instructor","989-708-6533",null,"magnesiumwheelcover@gmail.com","1990-03-28",22.2,"BYU","Exercise Sience","y","y","y","y"]
["Dan Derricott",{"$f":"IF(ISBLANK(A37),\"\",(MID(A37, FIND(\" \",A37,1)+1,99)))","v":"Derricott"},"Male","VP77",1,1,"Break-the-fast  Committee CoChair","801-971-2114","AT&T","djderricott@yahoo.com","1985-11-01",26.6,"BYU","Exercise Sience","y","y","y","y","n"]
["Danielle Richards",null,"Female","AG3",6,2,"FHE CoChair (F)","702-635-0712",null,"daniellerichards92@gmail.com","1992-01-13",20.399999999999999,"BYU","Dietetics","y","y","y","y","y"]
["David Steeby",{"$f":"IF(ISBLANK(A39),\"\",(MID(A39, FIND(\" \",A39,1)+1,99)))","v":"Steeby"},"Male","VP71",5,1,"Ward   Clerk","816-262-2700","AT&T","david_steeby@hotmail.com","1990-08-13",21.8,"BYU","Business","y","y","y","y","y"]
["Derek Gurr",null,"Male","x",4,1,"Elders1  Secretary","801-722-8813","T-Mobile","cougurrd@gmail.com","1989-01-05",23.5,"BYU","Communications/PR","y","y","y","y","n"]
["Elizabeth Dix",null,"Female","AG4",4,2,"Service Committee","951-694-2385",null,"elizabeth.dix11@gmail.com","1989-01-18",23.4,"BYU","Exercise Sience","y","y","y","y","y"]
["Elizabeth Wood",{"$f":"IF(ISBLANK(A42),\"\",(MID(A42, FIND(\" \",A42,1)+1,99)))","v":"Wood"},"Female","VP62",2,2,"Relief Society2  VT Supervisor","801-860-9411","T-Mobile","elizabeth9001@hotmail.com","1992-08-18",19.8,"BYU","Advertizing?","y","y","y","y","n"]
["Elsie Smith",{"$f":"IF(ISBLANK(A43),\"\",(MID(A43, FIND(\" \",A43,1)+1,99)))","v":"Smith"},"Female","VP61",4,2,"Ward Prayer CoChair(F)","760-525-6526","Verizon","elsiesmith26@gmail.com","1986-11-26",25.6,"BYU","History","y","y","y","y","n"]
["Garrett Laidlaw",{"$f":"IF(ISBLANK(A44),\"\",(MID(A44, FIND(\" \",A44,1)+1,99)))","v":"Laidlaw"},"Male","VP76",2,1,"Ward Missionary","626-633-6873",null,"garebear1232@yahoo.com","1993-09-24",18.7,"BYU","Chemical Engineering","y","y","y","y","n"]
["Heather Mosley",null,"Female","VP66",4,2,"Family History Committee","717-321-5443",null,"lilmoz14@gmail.com","1991-08-09",20.9,null,"Communications","y","y","y","y","n"]
["Jacob Ludlow",null,"Male","VP72",6,1,"Elders1 Instructor","801-616-8304",null,"sjacobludlow@gmail.com","1988-02-26",24.3,"BYU","Psychology","y","y","y","y","n"]
["Jaimie White",{"$f":"IF(ISBLANK(A47),\"\",(MID(A47, FIND(\" \",A47,1)+1,99)))","v":"White"},"Female","AG8",6,2,"Temple  Committee  CoChair (F)","702-328-6472","T-Mobile","jaimiewhite1@hotmail.com","1991-05-07",21.1,"BYU","Speech Therapy","y","y","y","y"]
["Jamie Williams",null,"Female","VP66",4,2,"[Relief Society2  Meeting Committee]","801-473-5634",null,"williams.jamie08@gmail.com","1988-10-28",23.6,"BYU","Elementary Education",null,"y",null,"y","y"]
["Jason Mann",null,"Male","VP72",6,1,"FHE Group Ldr 6 (M)","559-901-6153",null,"j.deanmann@gmail.com","1986-05-29",26.1,"BYU","Info Systems","y","y","y","y","n"]
["Jeff Evans",{"$f":"IF(ISBLANK(A50),\"\",(MID(A50, FIND(\" \",A50,1)+1,99)))","v":"Evans"},"Male","VP67",3,1,"Communications - Sacrament Meeting bulletin","540-664-8788",null,"jeff.evans@byu.net","1989-12-11",22.5,"BYU","Undecided","y","y","y","y","n"]
["Jess Rush",{"$f":"IF(ISBLANK(A51),\"\",(MID(A51, FIND(\" \",A51,1)+1,99)))","v":"Rush"},"Female","VP62",null,null,"None",null,null,null,null,null,null,null,null,null,null,null,"n"]
["Jesslyn Lim",null,"Female","AG1",3,2,"Break-the-fast Committee","801-919-4418",null,"jess.lim@hotmail.com","1989-03-16",{"$f":"IF(ISBLANK(K52),\"\",TRUNC((TODAY()-K52)/365.4,1))","v":23.3},"BYU","Accounting","y","y","y","y","n"]
["Jillian Carr",{"$f":"IF(ISBLANK(A53),\"\",(MID(A53, FIND(\" \",A53,1)+1,99)))","v":"Carr"},"Female","VP63",5,2,"Relief Society2  Meeting  Coordinator","509-392-3240","Verizon","jillianmcarr@gmail.com","1989-11-27",22.6,"BYU","PDBio","y","y","y","y","n"]
["John Sowa",{"$f":"IF(ISBLANK(A54),\"\",(MID(A54, FIND(\" \",A54,1)+1,99)))","v":"Sowa"},"Male","VP68",4,1,"Stake Institue Representative","860-967-1414","T-Mobile","johnmsowa@gmail.com","1983-06-04",29,"Working","Grad Chem. Eng.","y","y","y","y","n"]
["Jon Barton",{"$f":"IF(ISBLANK(A55),\"\",(MID(A55, FIND(\" \",A55,1)+1,99)))","v":"Barton"},"Male","VP76",2,1,"Ward Prayer CoChair(M)","801-850-8375","No texts","jonkido.barton@gmail.com","1986-10-19",25.7,"BYU","Sound Recording Tech.","y","y","y","y","n"]
["Jon Hart",null,"Male","CN1",3,1,"FHE Group Ldr 3 (M)","801-615-4089",null,"jonhart88@yahoo.com","1988-02-01",24.4,"BYU","Public Relations","y","y","y","y","y"]
["Jordon Pitt",null,"Male","VP72",6,1,"Service CoChair (M)","801-643-5960",null,"jpitt31@gmail.com","1988-10-03",23.7,"BYU","Exercise Sience","y","y","y","y","n"]
["Joseph Sowa",{"$f":"IF(ISBLANK(A58),\"\",(MID(A58, FIND(\" \",A58,1)+1,99)))","v":"Sowa"},"Male","VP68",4,1,"Sunday School   President\nTemple Worker","860-726-3744","T-Mobile","josephsowa@gmail.com","1984-12-30",27.5,"BYU","Music composition","y","y","y","y","n"]
["Josh Smith",{"$f":"IF(ISBLANK(A59),\"\",(MID(A59, FIND(\" \",A59,1)+1,99)))","v":"Smith"},"Male","CN3",2,1,"None","303-888-4013","AT&T","sirulizia@gmail.com","1985-05-03",27.1,"BYU","Food Science (optomitry)","y","y","y","y"]
["Joy Prior",null,"Female","x",4,2,"Relief Society2  Compassionate Service Committee",null,null,null,null,"",null,null,"y","y","y","y","n"]
["Kami Nilsen",null,"Female","AG1",3,2,"Communications - Sacrament Meeting bulletin\nWard Missionary","520-904-0301",null,"kamilynne25@gmail.com","1988-10-25",23.6,"Working","Law Office","y","y","y","y","?"]
[null,null,"Male","VP75",null,1,null,null,null,null,null,""]
["Kim Metzker",{"$f":"IF(ISBLANK(A63),\"\",(MID(A63, FIND(\" \",A63,1)+1,99)))","v":"Metzker"},"Female","VP59",1,2,"FHE Group Ldr 1 (F)","417-551-3679",null,"kimmichangea87@gmail.com","1987-12-16",24.5,"BYU","Music Ed (night classes)","y","y","y","y","n"]
["Kristen Lavering",{"$f":"IF(ISBLANK(A64),\"\",(MID(A64, FIND(\" \",A64,1)+1,99)))","v":"Lavering"},"Female","VP60",3,2,"Break-the-fast  Committee CoChair","425-638-2790","AT&T","knlavering@hotmail.com","1990-08-25",21.8,"BYU","Nursing","y","y","y","y","y"]
["Laney Tenney",{"$f":"IF(ISBLANK(A65),\"\",(MID(A65, FIND(\" \",A65,1)+1,99)))","v":"Tenney"},"Female","VP58",1,2,"Service Committee","801-603-6254","Cricket","lanneytenney@hotmail.com","1993-06-12",19,"BYU","Nursing","y","y","y","y","n"]
["Laura Thomas",null,"Female","VP57",1,2,"Sunday School Instructor\n[Temple Worker]","214-725-1700","AT&T","thefoof@gmail.com","1986-09-27",25.7,"Working",null,"y","y","y","y","n"]
["Lauren Stanford",{"$f":"IF(ISBLANK(A67),\"\",(MID(A67, FIND(\" \",A67,1)+1,99)))","v":"Stanford"},"Female","VP60",3,2,"Relief Society2   1st Counselor","714-313-2870","Verizon","laurenstanford@gmail.com","1988-05-16",24.1,"BYU","Exercise Sience","y","y","y","y","n"]
["Lexy Cline","Cline","Female","VP59",1,2,"Family History Committee","801-856-7024","Verizon","lexycline1@gmail.com","1990-05-20",22.1,"Weber State","Radiology Technology","y","y","y","y","n"]
["Linda Hendriksen","Hendriksen","Female","VP63",5,2,"FHE Group Ldr 5 (F)","716-487-6081",null,"linda.hendriksen@live.com","1991-09-11",20.8,"BYU","Mathmatics","y","y","y","y","n"]
["Liz VanDerwerken","VanDerwerken","Female","VP62",2,2,"Sunday School  Secretary","856-364-3914","AT&T","liz.vanderwerken@gmail.com","1990-03-31",22.2,"BYU","Family Living","y","y","y","y","n"]
["Lizzie Patch","Patch","Female","VP55",5,2,"Service CoChair (F)","801-803-0498","Verizon","lizziepatch@gmail.com","1990-06-14",22,"BYU","Public Health?","y","y","y","y","n"]
["Logan Larkin","Larkin","Male","VP70",4,1,"Elders1 Sacrament & Fast Offerings","801-803-4196","Verizon","loganlarkin@gmail.com","1990-05-24",22.1,"BYU","Psychology / Russian","y","y","y","y","y"]
["Mackenzie Wood",null,"Female","AG4",4,2,"Spiritual Welfare  Committee CoChair (F)","801-425-3275",null,"makwood84@gmail.com","1988-09-05",23.8,"BYU","Landscape Management","y","y","y","y","?"]
["Marcus Ellison",null,"Male","CN3",2,1,"Elders1 Activities Committee","503-801-0223",null,"marcusallen3@hotmail.com","1989-03-28",23.2,"BYU","Public Relations","y","y","y","y","n"]
["Marisa Ellsworth",{"$f":"IF(ISBLANK(A75),\"\",(MID(A75, FIND(\" \",A75,1)+1,99)))","v":"Ellsworth"},"Female","AG7",5,2,"Relief Society2     President","480-250-3028","Verizon","mrisa313@gmail.com","1991-03-13",21.3,"BYU","Public Health","y","y","y","y","y"]
["Marlena Smith",null,"Female","VP66",4,2,"Relief Society2  Meeting Committee","801-608-5999","Verizon","marlena20032001@msn.com","1989-09-20",22.7,"BYU","Art Education","y","y","y","y","?"]
["Mary Katherine Drasbek",{"$f":"IF(ISBLANK(A77),\"\",(MID(A77, FIND(\" \",A77,1)+1,99)))","v":"Katherine Drasbek"},"Female","VP63",5,2,"Communications - Bulletin board","703-627-2422","Verizon","mkdrasbek@gmail.com","1989-10-18",22.7,"BYU","Nursing","y","y","y","y","n"]
["Mary Lyman",null,"Female","VP56",6,2,"Ward Music - Chorister","832-567-8951","Sprint","yaymary@ymail.com","1992-06-22",20,"BYU","Business","y","y","y","y","n"]
["Matt Hakes",{"$f":"IF(ISBLANK(A79),\"\",(MID(A79, FIND(\" \",A79,1)+1,99)))","v":"Hakes"},"Male","VP78",2,1,"Elders1 Activities  Committee Chair","801-830-1497","No texts","mattshakes25@gmail.com","1988-02-05",24.4,"BYU","Mechanical Engineering","y","y","y","y"]
["Matt Hess",{"$f":"IF(ISBLANK(A80),\"\",(MID(A80, FIND(\" \",A80,1)+1,99)))","v":"Hess"},"Male","VP77",1,1,"Stake Activities Committee (F)\nWard Music - Pianst/Organist","801-698-9316","Verizon","chasing314@gmail.com","1988-09-13",23.8,"BYU","Computer Science","y","y","y","y"]
["Mattie Denton",{"$f":"IF(ISBLANK(A81),\"\",(MID(A81, FIND(\" \",A81,1)+1,99)))","v":"Denton"},"Female","AG7",5,2,"Ward Historian","602-376-9002","Verizon","mattied_22@yahoo.com","1990-10-22",21.7,"UVU","Dental Hygiene","y","y","y","y","y"]
["Megan Thacker",{"$f":"IF(ISBLANK(A82),\"\",(MID(A82, FIND(\" \",A82,1)+1,99)))","v":"Thacker"},"Female","VP56",6,2,"Temporal Welfare Committee","281-691-4097","T-Mobile","mm.thacker@hotmail.com","1992-06-04",20,"BYU","Dietetics","y","y","y","y","n"]
["Michael Huefner",null,"Male","CN1",3,1,"FHE CoChair (M)","801-400-6613",null,"huefdaddy@gmail.com","1988-07-07",23.9,"BYU","History Teaching","y","y","y","y","y"]
["Michael Vogeler",{"$f":"IF(ISBLANK(A84),\"\",(MID(A84, FIND(\" \",A84,1)+1,99)))","v":"Vogeler"},"Male","VP78",2,1,"Ward Mission Leader","801-450-9156","Verizon","vogeler.michael@gmail.com","1987-03-29",{"$f":"IF(ISBLANK(K84),\"\",TRUNC((TODAY()-K84)/365.4,1))","v":25.2},"BYU","Fianance","y","y","y","y","n"]
["Mike Jones","Jones","Male","VP69",4,1,"None","313-415-5135",null,"michael@gmail.com","1992-08-17",19.8,"Working",null,"y","y","y","y"]
["Nicole Graham","Graham","Female","VP63",5,2,"Relief Society2  Compassionate Service  Leader","208-670-0733",null,"nicolegraham88@gmail.com","1988-09-27",23.7,"BYU","Nursing","y","y","y","y","y"]
["Quinton Taylor","Taylor","Male","VP76",2,1,"Elders1   1st Counselor\n[Temple Worker]","847-757-8177",null,"quintonj.taylor@gmail.com","1989-05-18",23.1,"BYU","Civil Engineering","y","y","y","y"]
["Rachel Gordon","Gordon","Female","AG5",2,2,"Relief Society2  Compassionate Service Committee\nTemple Worker","208-403-7572","Sprint","jeanniehobbit@gmail.com","1988-07-22",23.9,"Working","Teaching music","y","y","y","y","y"]
["Reese Haydon","Haydon","Male","VP67",3,1,"Ward Missionary","541-441-3169",null,"rh@byu.edu","1990-03-28",22.2,"BYU","Business Management","y","y","y","y","n"]
["Riley Fitzgerald","Fitzgerald","Male","VP75",1,1,"Elders1 Sacrament & Fast Offerings","253-310-1314","Verizon","riley.fitzgerald@gmail.com","1988-05-24",24.1,"BYU","Accounting","y","y","y","y","y"]
["Rob Martin","Martin","Male","VP68",4,1,"Family History   Consultant (M)","801-592-3449","Verizon","robpaulm@gmail.com","1983-09-11",28.8,"Working","Xactware","y","y","y","y","n"]
["Ross Christensen","Christensen","Male","VP74",6,1,"Elders1   2nd Counselor","801-830-0930","AT&T","rossoshimi@hotmail.com","1988-05-14",24.1,"BYU","American Studies (pre-med)","y","y","y","y"]
["Ruthann Grawe","Grawe","Female","AG6",2,2,"Stake Institue Instructor","801-850-8404","Verizon","ruthann.grawe@gmail.com","1986-07-08",25.9,"BYU","School Physcology","y","y","y","y","n"]
["Ryan Wiscombe","Wiscombe","Male","VP74",6,1,"Ward  Asst Clerk Membership","801-358-3439","Sprint","rwiscombe@gmail.com","1987-09-28",24.7,"BYU","History","y","y","y","y"]
["Sally Yi",null,"Female","AG3",6,2,"Relief Society2  Instructor","801-455-1259",null,"sallyyi815@gmail.com","1988-08-15",23.8,"BYU","Psychology","y","y","y","y","y"]
["Sam Bilodeau",{"$f":"IF(ISBLANK(A96),\"\",(MID(A96, FIND(\" \",A96,1)+1,99)))","v":"Bilodeau"},"Male","VP67",3,1,"Elders1 Activities Committee","801-669-4532","T-Mobile","samhbilodeau@hotmail.com","1986-11-25",25.6,"BYU","Film","y","y","y","y","n"]
["Sam Rainsdon","Rainsdon","Female","VP56",6,2,"Relief Society2   Secretary","801-362-5860","AT&T","manthaontheloch@hotmail.com","1992-06-12",20,"BYU","Communication Disorders","y","y","y","y","n"]
["Sara Jenkins","Jenkins","Female","VP55",5,2,"Temporal Welfare  Committee CoChair(F)","435-421-9035","Verizon","sarajenk@gmail.com","1990-08-25",21.8,"BYU","Communication Disorders","y","y","y","y","n"]
["Scott Webster","Webster","Male","VP75",1,1,"Prhd Opening Exercises Coordinator","623-302-6306","T-Mobile","elderwebster@gmail.com","1986-08-16",25.8,"BYU","Chemical Engineering","y","y","y","y","y"]
["Sean Whitnah","Whitnah","Male","VP73",5,1,"Temporal Welfare Committee","503-740-0835",null,"sean.whitnah@yahoo.com","1989-11-29",22.6,"BYU","Biology (pre-dent)","y","y","y","y","n"]
["Sofia Arellano","Arellano","Female","AG2",1,2,"Family History Indexer","951-956-7252",null,"s.arellano89@yahoo.com","1989-06-26",23,"UVU","Nursing","y","y","y",null,"n"]
["Steven Cope","Cope","Male","VP73",5,1,"Temporal Welfare  Committee CoChair(M)","989-600-0284","Verizon","ohmanunited@gmail.com","1989-02-10",23.4,"BYU","Genetics (Business)","y","y","y","y","n"]
["Stew Williamson","Williamson","Male","VP77",1,1,"Elders1    President","303-396-3569",null,"stewwilli@gmail.com","1990-12-24",21.5,"BYU","Undecided","y","y","y","y","n"]
["Taylor Rios",null,"Male","x",5,1,"Family History Indexer","406-291-5847",null,null,null,"",null,null,"y","y","y","y","n"]
["Tiana Bettinson",null,"Female","VP66",4,2,"Spiritual Welfare Committee","801-259-4282",null,"tiana.bettinson@yahoo.com","1993-01-25",19.399999999999999,"BYU","Undeclared","y","y","y","y","n"]
["Tiana Garner",{"$f":"IF(ISBLANK(A106),\"\",(MID(A106, FIND(\" \",A106,1)+1,99)))","v":"Garner"},"Female","AG7",5,2,"Family History   Consultant (F)","480-747-4513","AT&T","tianaemily@gmail.com","1991-01-01",21.5,"BYU","Speech Pathology","y","y","y","y","y"]
["Toni Pilcher","Pilcher","Female","AG5",2,2,"FHE Group Ldr 2 (F)","970-402-3969","T-Mobile","principessatoni@gmail.com","1988-06-29",24,"BYU","English (Grad School)","y","y","y","y","n"]
["Trisha Stokes","Stokes","Female","x",3,2,"Relief Society2  VT Supervisor","801-471-3475",null,"trisha_rr@yahoo.com","1988-10-08",23.7,"BYU","Early Childhood Ed","y","y","y","y","n"]
["Tyler Buttars","Buttars","Male","VP68",4,1,"Temple  Committee  CoChair (M)","801-404-3363","T-Mobile","tyjjac@hotmail.com","1983-07-21",28.9,"BYU","Psychology","y","y","y","y","n"]
["Whitney Wilson","Wilson","Female","VP59",1,2,"Relief Society2  Pianist","352-410-4723","T-Mobile","sisterwhitness@gmail.com","1987-08-12",24.9,"BYU","PDBio","y","y","y","y","n"]
["Yeremy Turcios","Turcios","Male","VP69",4,1,"FHE Group Ldr 4 (M)\nWard Music - Choir Pianist","801-687-5721","T-Mobile","yeremyturcios@gmail.com","1986-04-23",26.2,"BYU","Information Systems","y","y","y","y","n"]
["Yewan",null,"Female","AG3",null,null,"None",null,null,null,null,"",null,null,null,null,null,null,"n"]
["Zac Taylor",{"$f":"IF(ISBLANK(A113),\"\",(MID(A113, FIND(\" \",A113,1)+1,99)))","v":"Taylor"},"Male","VP74",6,1,"Physical Facilities  Commitee Chair","530-925-5626","Verizon","taylorzachariah@hotmail.com","1989-03-18",23.3,"BYU","Biology","y","y","y","y","n"]
[null,null,"Female","AG1",null,2,null,null,null,null,null,""]
[null,null,"Female","AG1",null,2,null,null,null,null,null,""]
[null,null,"Female","AG2",null,2,null,null,null,null,null,{"$f":"IF(ISBLANK(K116),\"\",TRUNC((TODAY()-K116)/365.4,1))","v":""}]
[null,null,"Female","AG2",null,2,null,null,null,null,null,""]
[null,null,"Female","AG4",null,2,null,null,null,null,null,""]
[null,null,"Female","AG5",null,2,null,null,null,null,null,""]
[null,null,"Female","AG6",null,2,null,null,null,null,null,""]
[null,null,"Female","AG8",null,2,null,null,null,null,null,""]
[null,null,"Female","AG8",null,2,null,null,null,null,null,""]
[null,null,"Female","VP55",null,2,null,null,null,null,null,""]
[null,null,"Female","VP55",null,2,null,null,null,null,null,""]
[null,null,"Female","VP56",null,2,null,null,null,null,null,""]
[null,null,"Female","VP57",null,2,null,null,null,null,null,""]
[null,null,"Female","VP57",null,2,null,null,null,null,null,""]
[null,null,"Female","VP58",null,2,null,null,null,null,null,""]
[null,null,"Female","VP60",null,2,null,null,null,null,null,""]
[null,null,"Female","VP61",null,2,null,null,null,null,null,""]
[null,null,"Female","VP62",null,2,null,null,null,null,null,""]
[null,null,"Female","VP65",null,2,null,null,null,null,null,""]
[null,null,"Female","x",null,2,null,null,null,null,null,""]
[null,null,"Female","x",null,2,null,null,null,null,null,""]
[null,null,"Female","VP59",null,2]
[null,null,"Male","CN2",null,1,null,null,null,null,null,{"$f":"IF(ISBLANK(K136),\"\",TRUNC((TODAY()-K136)/365.4,1))","v":""}]
[null,null,"Male","CN2",null,1,null,null,null,null,null,""]
[null,null,"Male","CN2",null,1,null,null,null,null,null,""]
[null,null,"Male","CN2",null,1,null,null,null,null,null,""]
[null,null,"Male","VP69",null,1,null,null,null,null,null,""]
[null,null,"Male","VP69",null,1,null,null,null,null,null,""]
[null,null,"Male","VP70",null,1,null,null,null,null,null,""]
[null,null,"Male","VP70",null,1,null,null,null,null,null,""]
[null,null,"Male","VP71",null,1,null,null,null,null,null,""]
[null,null,"Male","VP78",null,1,null,null,null,null,null,""]
[null,null,"Male","x",null,1,null,null,null,null,null,""]
[null,{"$f":"IF(ISBLANK(A147),\"\",(MID(A147, FIND(\" \",A147,1)+1,99)))","v":""},"Male","x",null,1,null,null,null,null,null,""]
[null,null,"Male","CN3",null,1]
[]
[null,null,null,null,null,null,null,null,null,null,null,null,null,null,null,null,null,null,{"$f":"COUNTIF(S2:S148,\"y\")","v":21},"yes"]
["SCHOOL",null,"Males",{"$f":"SUM(IF((A2:A148=\"\")+(C2:C148<>\"Male\")+(F2:F148=\"\"), 0, 1))","v":50},null,null,null,null,null,null,null,null,null,null,null,null,null,null,{"$f":"COUNTIF(S2:S148,\"n\")","v":72},"no"]
["BYU",null,"Females",{"$f":"SUM(IF((A2:A148=\"\")+(C2:C148<>\"Female\")+(F2:F148=\"\"), 0, 1))","v":59},null,null,null,null,null,null,null,null,null,null,null,null,null,null,{"$f":"COUNTIF(S2:S148,\"~?\")","v":3},"maybe"]
["UVU",null,"Total",{"$f":"SUM(IF((F2:F148=\"\")+(A2:A148=\"\"), 0, 1))","v":109}]
["Provo College",null,"Total Names",{"$f":"COUNTA(A2:A148)","v":111}]
["Working"]
["Weber State"]
[]
[]
[]
["Carrier"]
["T-Mobile"]
["AT&T"]
["Verizon"]
["Sprint"]
["Cricket"]
["No texts"]

{"sheet":"Callings","index":1,"n_rows":205,"n_cols":5,"rows_kept":205,"cut":false,"hidden":false,"merged":[]}
["Calling","Current","Current Status","Proposed","Proposed Status"]
["Break-the-fast  Committee CoChair","Dan Derricott","Set Apart"]
["Break-the-fast  Committee CoChair","Kristen Lavering","Set Apart"]
["Break-the-fast Committee","Brad Judd","Set Apart"]
["Break-the-fast Committee","Jesslyn Lim","Set Apart"]
["Break-the-fast Committee",null,"Open"]
["Physical Facilities  Commitee Chair","Zac Taylor","Set Apart"]
["Physical Facilities Committee","Brice Condie","Set Apart"]
["Physical Facilities Committee","Asael Checketts","Set Apart"]
["Communications    Committee CoChair (F)","Amber Mosley","Set Apart"]
["Communications    Committee CoChair (M)","Chris Wasden","Set Apart",""]
["Communications - Bulletin board","Mary Katherine Drasbek","Set Apart"]
["Communications - Bulletin board",null,"Leave Open"]
["Communications - Sacrament Meeting bulletin","Jeff Evans","Set Apart"]
["Communications - Sacrament Meeting bulletin","Kami Nilsen","Set Apart"]
["Communications - Ward directory",null,"Leave Open"]
["Communications - Ward newsletter editor",null,"Leave Open"]
["Communications - Ward newsletter editor","Audrey Spainhower","Set Apart"]
["Elders1    President","Stew Williamson","Set Apart"]
["Elders1   1st Counselor","Quinton Taylor","Set Apart"]
["Elders1   2nd Counselor","Ross Christensen","Sustained"]
["Elders1  Secretary","Derek Gurr","Set Apart"]
["Elders1 Activities  Committee Chair","Matt Hakes","Sustained"]
["Elders1 Activities Committee","Brice Condie","Set Apart"]
["Elders1 Activities Committee","Sam Bilodeau","Set Apart"]
["Elders1 Activities Committee",null,"Open"]
["Elders1 Activities Committee","Marcus Ellison","Sustained",""]
["Elders1 Instructor","Jacob Ludlow","Sustained"]
["Elders1 Instructor","Craig Jones","Sustained"]
["Elders1 Sacrament & Fast Offerings","Riley Fitzgerald","Sustained"]
["Elders1 Sacrament & Fast Offerings","Logan Larkin","Sustained"]
["Elders2    President",null,"Leave Open"]
["Elders2   1st Counselor",null,"Leave Open"]
["Elders2   2nd Counselor",null,"Leave Open"]
["Elders2  Secretary",null,"Leave Open"]
["Elders2 Activities  Committee Chair",null,"Leave Open"]
["Elders2 Activities Committee",null,"Leave Open"]
["Elders2 Activities Committee",null,"Leave Open"]
["Elders2 Activities Committee",null,"Leave Open"]
["Elders2 Instructor",null,"Leave Open"]
["Elders2 Instructor",null,"Leave Open"]
["Elders2 Sacrament & Fast Offerings",null,"Leave Open"]
["Family History   Consultant (F)","Tiana Garner","Set Apart"]
["Family History   Consultant (M)","Rob Martin","Set Apart"]
["Family History Committee","Heather Mosley","Set Apart"]
["Family History Committee","Cassey Tenney","Set Apart"]
["Family History Committee","Lexy Cline","Set Apart"]
["Family History Committee",null,"Open"]
["Family History Indexer","Sofia Arellano","Set Apart"]
["Family History Indexer","Taylor Rios","Set Apart"]
["Family History Indexer","Abbie Willis","Set Apart"]
["FHE CoChair (F)","Danielle Richards","Set Apart"]
["FHE CoChair (M)","Michael Huefner","Set Apart"]
["FHE Group Ldr 1 (F)","Kim Metzker","Set Apart"]
["FHE Group Ldr 1 (M)","Keegan Rank","Set Apart"]
["FHE Group Ldr 2 (F)","Toni Pilcher","Set Apart"]
["FHE Group Ldr 2 (M)","Blake Laidlaw","Set Apart",""]
["FHE Group Ldr 3 (F)","Angela Howell","Set Apart"]
["FHE Group Ldr 3 (M)","Jon Hart","Set Apart",""]
["FHE Group Ldr 4 (F)","Amy Clark","Set Apart"]
["FHE Group Ldr 4 (M)","Yeremy Turcios","Set Apart"]
["FHE Group Ldr 5 (F)","Linda Hendriksen","Set Apart"]
["FHE Group Ldr 5 (M)","Cory Roberts","Set Apart"]
["FHE Group Ldr 6 (F)",null,"Open"]
["FHE Group Ldr 6 (M)","Jason Mann","Set Apart"]
["FHE Group Ldr 7 (F)",null,"Open"]
["FHE Group Ldr 7 (M)",null,"Open"]
["Prhd Opening Exercises Coordinator","Scott Webster","Set Apart"]
["Prhd Opening Exercises Pianist",null,"Open"]
["Relief Society1     President",null,"Leave Open"]
["Relief Society1   1st Counselor",null,"Leave Open"]
["Relief Society1   2nd Counselor",null,"Leave Open"]
["Relief Society1   Secretary",null,"Leave Open"]
["Relief Society1  Chorister",null,"Leave Open"]
["Relief Society1  Compassionate Service  Leader",null,"Leave Open"]
["Relief Society1  Compassionate Service Committee",null,"Leave Open"]
["Relief Society1  Compassionate Service Committee",null,"Leave Open"]
["Relief Society1  Instructor",null,"Leave Open"]
["Relief Society1  Instructor",null,"Leave Open"]
["Relief Society1  Meeting  Coordinator",null,"Leave Open"]
["Relief Society1  Meeting Committee",null,"Leave Open"]
["Relief Society1  Meeting Committee",null,"Leave Open"]
["Relief Society1  Pianist",null,"Leave Open"]
["Relief Society1  VT Coordinator",null,"Leave Open"]
["Relief Society1  VT Supervisor",null,"Leave Open"]
["Relief Society1  VT Supervisor",null,"Leave Open"]
["Relief Society1  VT Supervisor",null,"Leave Open"]
["Relief Society2     President","Marisa Ellsworth","Set Apart"]
["Relief Society2   1st Counselor","Lauren Stanford","Set Apart"]
["Relief Society2   2nd Counselor","Bethany Cherry","Set Apart"]
["Relief Society2   Secretary","Sam Rainsdon","Set Apart"]
["Relief Society2  Chorister",null,"Leave Open"]
["Relief Society2  Compassionate Service  Leader","Nicole Graham","Set Apart"]
["Relief Society2  Compassionate Service Committee",null,"Open"]
["Relief Society2  Compassionate Service Committee","Rachel Gordon","Set Apart"]
["Relief Society2  Compassionate Service Committee","Joy Prior","Set Apart"]
["Relief Society2  Instructor","Sally Yi","Set Apart",""]
["Relief Society2  Instructor","Audrey Spainhower","Set Apart"]
["Relief Society2  Meeting  Coordinator","Jillian Carr","Set Apart"]
["Relief Society2  Meeting Committee","Annie Waggoner","Set Apart"]
["Relief Society2  Meeting Committee","Courtney Pannell","Set Apart"]
["Relief Society2  Meeting Committee",null,"In Progress","Jamie Williams","Approved"]
["Relief Society2  Meeting Committee","Marlena Smith","Set Apart"]
["Relief Society2  Pianist",null,"Open"]
["Relief Society2  Pianist","Whitney Wilson","Set Apart"]
["Relief Society2  VT Coordinator","Candace Carlile","Set Apart"]
["Relief Society2  VT Supervisor","Trisha Stokes","Set Apart"]
["Relief Society2  VT Supervisor","Briana Hunt","Set Apart"]
["Relief Society2  VT Supervisor",null,"Open"]
["Relief Society2  VT Supervisor","Elizabeth Wood","Set Apart"]
["Service CoChair (F)","Lizzie Patch","Set Apart"]
["Service CoChair (M)","Jordon Pitt","Set Apart"]
["Service Committee","Laney Tenney","Set Apart"]
["Service Committee","Elizabeth Dix","Set Apart"]
["Service Committee","Brenda Darrington","Sustained"]
["Spiritual Welfare  Committee CoChair (F)","Mackenzie Wood","Set Apart"]
["Spiritual Welfare  Committee CoChair (M)","Brett Andrus","Set Apart"]
["Spiritual Welfare Committee","Tiana Bettinson","Set Apart"]
["Spiritual Welfare Committee","Anna Dollins","Set Apart"]
["Spiritual Welfare Committee","Clara Stratford","Set Apart"]
["Stake Relief Society Mentor","Sister Stokes","Set Apart"]
["Stake Activities Committee (F)","Matt Hess","Set Apart"]
["Stake Activities Committee (M)",null,"Open"]
["Stake Institue Instructor","Ruthann Grawe","Set Apart"]
["Stake Institue Representative","John Sowa","Sustained"]
["Sunday School   President","Joseph Sowa","Set Apart",""]
["Sunday School  1st Counselor","Chris Doxey","Set Apart"]
["Sunday School  2nd Counselor","Aaron Taylor","Set Apart"]
["Sunday School  Secretary","Liz VanDerwerken","Set Apart"]
["Sunday School Instructor","Becca Runyan","Set Apart"]
["Sunday School Instructor","Laura Thomas","Set Apart"]
["Sunday School Instructor (Temple Prep)","Sister Duran","Set Apart"]
["Sunday School Instructor (Temple Prep)","Sister Stokes","Set Apart"]
["Sunday School Instructor (Temple Prep)","Sister Woodall","Set Apart"]
["Temple  Committee  CoChair (F)","Jaimie White","Set Apart"]
["Temple  Committee  CoChair (M)","Tyler Buttars","Set Apart"]
["Temple Committee","Adrienne St. Clair","Set Apart"]
["Temple Committee","Becca Mills","Set Apart"]
["Temple Committee",null,"Open"]
["Temple Committee",null,"Open"]
["Temple Worker",null,"In Progress","Quinton Taylor","Approved"]
["Temple Worker","Joseph Sowa","Set Apart"]
["Temple Worker","Asael Checketts","Open"]
["Temple Worker",null,"In Progress","Laura Thomas","Approved"]
["Temple Worker","Rachel Gordon","Set Apart"]
["Temple Worker",null,"In Progress","Chris Doxey","Approved"]
["Temporal Welfare  Committee CoChair(F)","Sara Jenkins","Set Apart"]
["Temporal Welfare  Committee CoChair(M)","Steven Cope","Set Apart"]
["Temporal Welfare Committee",null,"Open"]
["Temporal Welfare Committee","Sean Whitnah","Set Apart"]
["Temporal Welfare Committee","Megan Thacker","Set Apart"]
["Temporal Welfare Committee",null,"Open"]
["Ward    Executive Secretary","Andrew Hardman","Set Apart"]
["Ward   Asst Executive Secretary","Adam Hammer","Set Apart"]
["Ward   Clerk","David Steeby","Set Apart"]
["Ward  Asst Clerk Financial","Adam Bilodeau","Set Apart"]
["Ward  Asst Clerk Membership","Ryan Wiscombe","Set Apart"]
["Ward  Asst Clerk Statistical/Callings",null,"Open"]
["Ward Historian","Mattie Denton","Set Apart"]
["Ward Mission Leader","Michael Vogeler","Set Apart"]
["Ward Missionary","Reese Haydon","Set Apart"]
["Ward Missionary","Kami Nilsen","Set Apart"]
["Ward Missionary",null,"Open"]
["Ward Missionary","Garrett Laidlaw","Set Apart"]
["Ward Music   CoChair (F)","Audrey Baer","Set Apart"]
["Ward Music   CoChair (M)","Court Butterfield","Set Apart"]
["Ward Music - Choir Director","Alli Farnsworth","Set Apart"]
["Ward Music - Choir Pianist","Yeremy Turcios","Set Apart"]
["Ward Music - Choir Pianist",null,"Leave Open"]
["Ward Music - Chorister","Mary Lyman","Sustained"]
["Ward Music - Pianst/Organist","Matt Hess","Set Apart"]
["Ward Music - Pianst/Organist","Alex Smith","Sustained"]
["Ward Prayer CoChair(F)","Elsie Smith","Set Apart"]
["Ward Prayer CoChair(M)","Jon Barton","Set Apart"]
[]
[null,"Filled:",{"$f":"COUNTA(B2:B174)-COUNTIF(C2:C174,\"Need To Release\")-COUNTIF(C2:C174,\"Released\")-COUNTIF(C2:C174,\"Change\")","v":118}]
[null,"Left to Fill",{"$f":"COUNTIF(C2:C174,\"Open\") + COUNTIF(C2:C174,\"Need To Release\") + COUNTIF(C2:C174,\"Released\") +COUNTIF(C2:C174,\"In Progress\")","v":22}]
[null,"Proposed",{"$f":"COUNTA(D2:D174) - COUNTIF(D2:D174, \"x\")","v":10}]
[null,"Open:",{"$f":"C177-C178","v":12}]
[]
[null,"Open",{"$f":"COUNTIF($C$2:$C$174,\"Open\")","v":18}]
[null,"Need to Release",{"$f":"COUNTIF($C$2:$C$174,\"Need To Release\")","v":0}]
[null,"Released",{"$f":"COUNTIF($C$2:$C$174,\"Released\")","v":0}]
[null,"In Progress",{"$f":"COUNTIF($C$2:$C$174,\"In Progress\")","v":4}]
[]
["Current Status Values"]
["Open"]
["Sustained"]
["Set Apart"]
["Need To Release"]
["Released"]
["In Progress"]
["Change"]
["Leave Open"]
[]
["Proposed Status Values"]
["Not Yet Approved"]
["Approved"]
["Called"]
["Sustained"]
["Hold"]
["Submitted"]
[]
[]
["Actions still to take"]

{"sheet":"Actions","index":2,"n_rows":4,"n_cols":4,"rows_kept":4,"cut":false,"hidden":false,"merged":[]}
["Jamie Williams","Call","Relief Society2  Meeting Committee","801-473-5634"]
["Brenda Darrington","Set apart","Service Committee","208-431-1360"]
["Mary Lyman","Set apart","Ward Music - Chorister","832-567-8951"]
["Alex Smith","Set apart","Ward Music - Pianst/Organist","703-232-2347"]

{"sheet":"Openings","index":3,"n_rows":23,"n_cols":4,"rows_kept":23,"cut":false,"hidden":false,"merged":[]}
["Yewan","AG3"," No Calling"]
["An Ho","CN3"," No Calling"]
["Josh Smith","CN3"," No Calling"]
["Jess Rush","VP62"," No Calling"]
["Mike Jones","VP69"," No Calling"]
[null,null,"Open Position","Break-the-fast Committee"]
[null,null,"Open Position","Elders1 Activities Committee"]
[null,null,"Open Position","Family History Committee"]
[null,null,"Open Position","FHE Group Ldr 6 (F)"]
[null,null,"Open Position","FHE Group Ldr 7 (F)"]
[null,null,"Open Position","FHE Group Ldr 7 (M)"]
[null,null,"Open Position","Prhd Opening Exercises Pianist"]
[null,null,"Open Position","Relief Society2  Compassionate Service Committee"]
[null,null,"Open Position","Relief Society2  Pianist"]
[null,null,"Open Position","Relief Society2  VT Supervisor"]
[null,null,"Open Position","Stake Activities Committee (M)"]
[null,null,"Open Position","Temple Committee"]
[null,null,"Open Position","Temple Committee"]
[null,null,"Open Position","Temple Worker"]
[null,null,"Open Position","Temporal Welfare Committee"]
[null,null,"Open Position","Temporal Welfare Committee"]
[null,null,"Open Position","Ward  Asst Clerk Statistical/Callings"]
[null,null,"Open Position","Ward Missionary"]

{"sheet":"FHE assigments","index":4,"n_rows":221,"n_cols":2,"rows_kept":221,"cut":false,"hidden":false,"merged":[]}
["Row Labels","Count of FHE"]
[1,17]
["Female",10]
["AG2",2]
["Sofia Arellano",1]
["Abbie Willis",1]
["VP57",2]
["Audrey Spainhower",1]
["Laura Thomas",1]
["VP58",3]
["Annie Waggoner",1]
["Cassey Tenney",1]
["Laney Tenney",1]
["VP59",3]
["Lexy Cline",1]
["Whitney Wilson",1]
["Kim Metzker",1]
["Male",7]
["VP75",3]
["Court Butterfield",1]
["Riley Fitzgerald",1]
["Scott Webster",1]
["VP77",4]
["Andrew Hardman",1]
["Dan Derricott",1]
["Matt Hess",1]
["Stew Williamson",1]
[2,18]
["Female",8]
["AG5",3]
["Briana Hunt",1]
["Rachel Gordon",1]
["Toni Pilcher",1]
["AG6",3]
["Alex Smith",1]
["Amber Mosley",1]
["Ruthann Grawe",1]
["VP62",2]
["Elizabeth Wood",1]
["Liz VanDerwerken",1]
["Male",10]
["CN3",3]
["Josh Smith",1]
["Marcus Ellison",1]
["An Ho",1]
["VP76",4]
["Jon Barton",1]
["Quinton Taylor",1]
["Garrett Laidlaw",1]
["Blake Laidlaw",1]
["VP78",3]
["Matt Hakes",1]
["Michael Vogeler",1]
["Brice Condie",1]
[3,15]
["Female",7]
["AG1",2]
["Kami Nilsen",1]
["Jesslyn Lim",1]
["VP60",4]
["Angela Howell",1]
["Clara Stratford",1]
["Lauren Stanford",1]
["Kristen Lavering",1]
["x",1]
["Trisha Stokes",1]
["Male",8]
["CN1",4]
["Asael Checketts",1]
["Jon Hart",1]
["Michael Huefner",1]
["Aaron Taylor",1]
["VP67",4]
["Adam Bilodeau",1]
["Sam Bilodeau",1]
["Jeff Evans",1]
["Reese Haydon",1]
[4,20]
["Female",11]
["AG4",3]
["Becca Mills",1]
["Elizabeth Dix",1]
["Mackenzie Wood",1]
["VP61",2]
["Amy Clark",1]
["Elsie Smith",1]
["VP66",4]
["Marlena Smith",1]
["Tiana Bettinson",1]
["Heather Mosley",1]
["Jamie Williams",1]
["x",2]
["Bethany Cherry",1]
["Joy Prior",1]
["Male",9]
["VP68",4]
["John Sowa",1]
["Joseph Sowa",1]
["Rob Martin",1]
["Tyler Buttars",1]
["VP69",2]
["Yeremy Turcios",1]
["Mike Jones",1]
["VP70",2]
["Chris Wasden",1]
["Logan Larkin",1]
["x",1]
["Derek Gurr",1]
[5,19]
["Female",11]
["AG7",4]
["Alli Farnsworth",1]
["Marisa Ellsworth",1]
["Mattie Denton",1]
["Tiana Garner",1]
["VP55",2]
["Lizzie Patch",1]
["Sara Jenkins",1]
["VP63",4]
["Jillian Carr",1]
["Mary Katherine Drasbek",1]
["Linda Hendriksen",1]
["Nicole Graham",1]
["x",1]
["Courtney Pannell",1]
["Male",8]
["VP71",3]
["Chris Doxey",1]
["David Steeby",1]
["Cory Roberts",1]
["VP73",4]
["Adam Hammer",1]
["Sean Whitnah",1]
["Steven Cope",1]
["Craig Jones",1]
["x",1]
["Taylor Rios",1]
[6,19]
["Female",11]
["AG3",3]
["Anna Dollins",1]
["Danielle Richards",1]
["Sally Yi",1]
["AG8",2]
["Jaimie White",1]
["Becca Runyan",1]
["VP56",3]
["Mary Lyman",1]
["Megan Thacker",1]
["Sam Rainsdon",1]
["VP65",3]
["Adrienne St. Clair",1]
["Audrey Baer",1]
["Candace Carlile",1]
["Male",8]
["VP72",4]
["Jacob Ludlow",1]
["Jordon Pitt",1]
["Jason Mann",1]
["Brad Judd",1]
["VP74",4]
["Brett Andrus",1]
["Ross Christensen",1]
["Ryan Wiscombe",1]
["Zac Taylor",1]
["(blank)"]
["Female"]
["AG1"]
["(blank)"]
["AG2"]
["(blank)"]
["AG3"]
["Yewan"]
["AG4"]
["(blank)"]
["AG5"]
["(blank)"]
["AG6"]
["(blank)"]
["AG8"]
["(blank)"]
["VP55"]
["(blank)"]
["VP56"]
["(blank)"]
["VP57"]
["(blank)"]
["VP58"]
["(blank)"]
["VP59"]
["(blank)"]
["VP60"]
["(blank)"]
["VP61"]
["Brenda Darrington"]
["(blank)"]
["VP62"]
["Jess Rush"]
["(blank)"]
["VP65"]
["(blank)"]
["x"]
["(blank)"]
["Male"]
["CN2"]
["(blank)"]
["CN3"]
["(blank)"]
["VP69"]
["(blank)"]
["VP70"]
["(blank)"]
["VP71"]
["(blank)"]
["VP75"]
["(blank)"]
["VP78"]
["(blank)"]
["x"]
["(blank)"]
["Grand Total",108]

{"sheet":"Statistics","index":5,"n_rows":18,"n_cols":7,"rows_kept":18,"cut":false,"hidden":false,"merged":[]}
["Ward Statistics"]
[null,null,null,"Age","Male","Female","Total"]
["Average female age",{"$f":"AVERAGEIF(Members!C2:'Members'!C148, \"=Female\",Members!L2:'Members'!L148)","v":22.751724137931042},null,17,{"$f":"SUM(IF((Members!$A$2:'Members'!$A$148<>\"\")*(Members!$C$2:'Members'!$C$148=\"Male\")*(IF((Members!$L$2:'Members'!$L$148>=$D3) * (Members!$L$2:'Members'!$L$148<$D3+1),1,0)),1,0))","v":0},{"$f":"SUM(IF((Members!$A$2:'Members'!$A$148<>\"\")*(Members!$C$2:'Members'!$C$148=\"Female\")*(IF((Members!$L$2:'Members'!$L$148>=$D3) * (Members!$L$2:'Members'!$L$148<$D3+1),1,0)),1,0))","v":0},{"$f":"E3+F3","v":0}]
["Average male age",{"$f":"AVERAGEIF(Members!C2:'Members'!C148, \"=Male\", Members!L2:'Members'!L148)","v":23.991836734693884},null,18,{"$f":"SUM(IF((Members!$A$2:'Members'!$A$148<>\"\")*(Members!$C$2:'Members'!$C$148=\"Male\")*(IF((Members!$L$2:'Members'!$L$148>=$D4) * (Members!$L$2:'Members'!$L$148<$D4+1),1,0)),1,0))","v":2},{"$f":"SUM(IF((Members!$A$2:'Members'!$A$148<>\"\")*(Members!$C$2:'Members'!$C$148=\"Female\")*(IF((Members!$L$2:'Members'!$L$148>=$D4) * (Members!$L$2:'Members'!$L$148<$D4+1),1,0)),1,0))","v":0},{"$f":"E4+F4","v":2}]
["Average age",{"$f":"AVERAGE(Members!L2:'Members'!L148)","v":23.319626168224296},null,19,{"$f":"SUM(IF((Members!$A$2:'Members'!$A$148<>\"\")*(Members!$C$2:'Members'!$C$148=\"Male\")*(IF((Members!$L$2:'Members'!$L$148>=$D5) * (Members!$L$2:'Members'!$L$148<$D5+1),1,0)),1,0))","v":1},{"$f":"SUM(IF((Members!$A$2:'Members'!$A$148<>\"\")*(Members!$C$2:'Members'!$C$148=\"Female\")*(IF((Members!$L$2:'Members'!$L$148>=$D5) * (Members!$L$2:'Members'!$L$148<$D5+1),1,0)),1,0))","v":3},4]
["Oldest female",{"$f":"MAX(IF((Members!$A$2:'Members'!$A$148<>\"\")*(Members!$C$2:'Members'!$C$148=\"Female\")*(Members!$L$2:'Members'!$L$148<>\"\"),Members!$L$2:'Members'!$L$148,0))","v":26.1},null,20,{"$f":"SUM(IF((Members!$A$2:'Members'!$A$148<>\"\")*(Members!$C$2:'Members'!$C$148=\"Male\")*(IF((Members!$L$2:'Members'!$L$148>=$D6) * (Members!$L$2:'Members'!$L$148<$D6+1),1,0)),1,0))","v":0},{"$f":"SUM(IF((Members!$A$2:'Members'!$A$148<>\"\")*(Members!$C$2:'Members'!$C$148=\"Female\")*(IF((Members!$L$2:'Members'!$L$148>=$D6) * (Members!$L$2:'Members'!$L$148<$D6+1),1,0)),1,0))","v":8},8]
["Oldest male",{"$f":"MAX(IF((Members!$A$2:'Members'!$A$148<>\"\")*(Members!$C$2:'Members'!$C$148=\"Male\")*(Members!$L$2:'Members'!$L$148<>\"\"),Members!$L$2:'Members'!$L$148,0))","v":29},null,21,{"$f":"SUM(IF((Members!$A$2:'Members'!$A$148<>\"\")*(Members!$C$2:'Members'!$C$148=\"Male\")*(IF((Members!$L$2:'Members'!$L$148>=$D7) * (Members!$L$2:'Members'!$L$148<$D7+1),1,0)),1,0))","v":4},{"$f":"SUM(IF((Members!$A$2:'Members'!$A$148<>\"\")*(Members!$C$2:'Members'!$C$148=\"Female\")*(IF((Members!$L$2:'Members'!$L$148>=$D7) * (Members!$L$2:'Members'!$L$148<$D7+1),1,0)),1,0))","v":11},15]
["Youngest female",{"$f":"MIN(IF((Members!$A$2:'Members'!$A$148<>\"\")*(Members!$C$2:'Members'!$C$148=\"Female\")*(Members!$L$2:'Members'!$L$148<>\"\")*(Members!$L$2:'Members'!$L$148<>0),Members!$L$2:'Members'!$L$148,999))","v":19},null,22,{"$f":"SUM(IF((Members!$A$2:'Members'!$A$148<>\"\")*(Members!$C$2:'Members'!$C$148=\"Male\")*(IF((Members!$L$2:'Members'!$L$148>=$D8) * (Members!$L$2:'Members'!$L$148<$D8+1),1,0)),1,0))","v":7},{"$f":"SUM(IF((Members!$A$2:'Members'!$A$148<>\"\")*(Members!$C$2:'Members'!$C$148=\"Female\")*(IF((Members!$L$2:'Members'!$L$148>=$D8) * (Members!$L$2:'Members'!$L$148<$D8+1),1,0)),1,0))","v":8},15]
["Youngest male",{"$f":"MIN(IF((Members!$A$2:'Members'!$A$148<>\"\")*(Members!$C$2:'Members'!$C$148=\"Male\")*(Members!$L$2:'Members'!$L$148<>\"\")*(Members!$L$2:'Members'!$L$148<>0),Members!$L$2:'Members'!$L$148,999))","v":18.5},null,23,{"$f":"SUM(IF((Members!$A$2:'Members'!$A$148<>\"\")*(Members!$C$2:'Members'!$C$148=\"Male\")*(IF((Members!$L$2:'Members'!$L$148>=$D9) * (Members!$L$2:'Members'!$L$148<$D9+1),1,0)),1,0))","v":13},{"$f":"SUM(IF((Members!$A$2:'Members'!$A$148<>\"\")*(Members!$C$2:'Members'!$C$148=\"Female\")*(IF((Members!$L$2:'Members'!$L$148>=$D9) * (Members!$L$2:'Members'!$L$148<$D9+1),1,0)),1,0))","v":13},26]
["Number 25+ female",{"$f":"SUM(IF((Members!$A$2:'Members'!$A$148<>\"\")*(Members!$C$2:'Members'!$C$148=\"Female\")*(Members!$L$2:'Members'!$L$148<>\"\") * (Members!$L$2:'Members'!$L$148>=25),1,0))","v":8},null,24,{"$f":"SUM(IF((Members!$A$2:'Members'!$A$148<>\"\")*(Members!$C$2:'Members'!$C$148=\"Male\")*(IF((Members!$L$2:'Members'!$L$148>=$D10) * (Members!$L$2:'Members'!$L$148<$D10+1),1,0)),1,0))","v":8},{"$f":"SUM(IF((Members!$A$2:'Members'!$A$148<>\"\")*(Members!$C$2:'Members'!$C$148=\"Female\")*(IF((Members!$L$2:'Members'!$L$148>=$D10) * (Members!$L$2:'Members'!$L$148<$D10+1),1,0)),1,0))","v":7},15]
["Number 25+ male",{"$f":"SUM(IF((Members!$A$2:'Members'!$A$148<>\"\")*(Members!$C$2:'Members'!$C$148=\"Male\")*(Members!$L$2:'Members'!$L$148<>\"\") * (Members!$L$2:'Members'!$L$148>=25),1,0))","v":14},null,25,{"$f":"SUM(IF((Members!$A$2:'Members'!$A$148<>\"\")*(Members!$C$2:'Members'!$C$148=\"Male\")*(IF((Members!$L$2:'Members'!$L$148>=$D11) * (Members!$L$2:'Members'!$L$148<$D11+1),1,0)),1,0))","v":4},{"$f":"SUM(IF((Members!$A$2:'Members'!$A$148<>\"\")*(Members!$C$2:'Members'!$C$148=\"Female\")*(IF((Members!$L$2:'Members'!$L$148>=$D11) * (Members!$L$2:'Members'!$L$148<$D11+1),1,0)),1,0))","v":7},11]
[null,null,null,26,{"$f":"SUM(IF((Members!$A$2:'Members'!$A$148<>\"\")*(Members!$C$2:'Members'!$C$148=\"Male\")*(IF((Members!$L$2:'Members'!$L$148>=$D12) * (Members!$L$2:'Members'!$L$148<$D12+1),1,0)),1,0))","v":5},{"$f":"SUM(IF((Members!$A$2:'Members'!$A$148<>\"\")*(Members!$C$2:'Members'!$C$148=\"Female\")*(IF((Members!$L$2:'Members'!$L$148>=$D12) * (Members!$L$2:'Members'!$L$148<$D12+1),1,0)),1,0))","v":1},6]
[null,null,null,27,{"$f":"SUM(IF((Members!$A$2:'Members'!$A$148<>\"\")*(Members!$C$2:'Members'!$C$148=\"Male\")*(IF((Members!$L$2:'Members'!$L$148>=$D13) * (Members!$L$2:'Members'!$L$148<$D13+1),1,0)),1,0))","v":2},{"$f":"SUM(IF((Members!$A$2:'Members'!$A$148<>\"\")*(Members!$C$2:'Members'!$C$148=\"Female\")*(IF((Members!$L$2:'Members'!$L$148>=$D13) * (Members!$L$2:'Members'!$L$148<$D13+1),1,0)),1,0))","v":0},2]
[null,null,null,28,{"$f":"SUM(IF((Members!$A$2:'Members'!$A$148<>\"\")*(Members!$C$2:'Members'!$C$148=\"Male\")*(IF((Members!$L$2:'Members'!$L$148>=$D14) * (Members!$L$2:'Members'!$L$148<$D14+1),1,0)),1,0))","v":2},{"$f":"SUM(IF((Members!$A$2:'Members'!$A$148<>\"\")*(Members!$C$2:'Members'!$C$148=\"Female\")*(IF((Members!$L$2:'Members'!$L$148>=$D14) * (Members!$L$2:'Members'!$L$148<$D14+1),1,0)),1,0))","v":0},2]
[null,null,null,29,{"$f":"SUM(IF((Members!$A$2:'Members'!$A$148<>\"\")*(Members!$C$2:'Members'!$C$148=\"Male\")*(IF((Members!$L$2:'Members'!$L$148>=$D15) * (Members!$L$2:'Members'!$L$148<$D15+1),1,0)),1,0))","v":1},{"$f":"SUM(IF((Members!$A$2:'Members'!$A$148<>\"\")*(Members!$C$2:'Members'!$C$148=\"Female\")*(IF((Members!$L$2:'Members'!$L$148>=$D15) * (Members!$L$2:'Members'!$L$148<$D15+1),1,0)),1,0))","v":0},1]
[null,null,null,30,{"$f":"SUM(IF((Members!$A$2:'Members'!$A$148<>\"\")*(Members!$C$2:'Members'!$C$148=\"Male\")*(IF((Members!$L$2:'Members'!$L$148>=$D16) * (Members!$L$2:'Members'!$L$148<$D16+1),1,0)),1,0))","v":0},{"$f":"SUM(IF((Members!$A$2:'Members'!$A$148<>\"\")*(Members!$C$2:'Members'!$C$148=\"Female\")*(IF((Members!$L$2:'Members'!$L$148>=$D16) * (Members!$L$2:'Members'!$L$148<$D16+1),1,0)),1,0))","v":0},0]
[null,null,null,31,{"$f":"SUM(IF((Members!$A$2:'Members'!$A$148<>\"\")*(Members!$C$2:'Members'!$C$148=\"Male\")*(IF((Members!$L$2:'Members'!$L$148>=$D17) * (Members!$L$2:'Members'!$L$148<$D17+1),1,0)),1,0))","v":0},{"$f":"SUM(IF((Members!$A$2:'Members'!$A$148<>\"\")*(Members!$C$2:'Members'!$C$148=\"Female\")*(IF((Members!$L$2:'Members'!$L$148>=$D17) * (Members!$L$2:'Members'!$L$148<$D17+1),1,0)),1,0))","v":0},0]
[null,null,null,32,{"$f":"SUM(IF((Members!$A$2:'Members'!$A$148<>\"\")*(Members!$C$2:'Members'!$C$148=\"Male\")*(IF((Members!$L$2:'Members'!$L$148>=$D18) * (Members!$L$2:'Members'!$L$148<$D18+1),1,0)),1,0))","v":0},{"$f":"SUM(IF((Members!$A$2:'Members'!$A$148<>\"\")*(Members!$C$2:'Members'!$C$148=\"Female\")*(IF((Members!$L$2:'Members'!$L$148>=$D18) * (Members!$L$2:'Members'!$L$148<$D18+1),1,0)),1,0))","v":0},0]

{"sheet":"Work area","index":6,"n_rows":0,"n_cols":0,"rows_kept":0,"cut":false,"hidden":false,"merged":[]}